Cogmind - Beta 17 @@@ ROGUE MODE // 2026.06.30 @ 03:30:49 Player: Xo-X0-100101 Result: Destroyed by B-48 Gladiator with Mace Performance ------------- Evolutions (4) 2000 Regions Visited (7) 1400 Robots Destroyed (39) 195 Value Destroyed (1633) 1633 Prototype IDs (6) 120 Alien Tech Used (0) 0 Bonus (734) 734 TOTAL SCORE: 6082 Bonus ------- Registered with UFD 300 Met Optimus in HQ 500 Friendly Fire -66 Cogmind --------- Core Integrity 0/850 Matter 295/300 Energy 85/100 System Corruption 5% Temperature Cool (0) Movement Treading (160) Location -6/Lower Caves Parts ------- > --- POWER (1) -------- (None) > --- PROPULSION (4) --- Light Treads > --- UTILITY (7) ------ Medium Storage Unit Targeting Computer Target Analyzer Core Analyzer > --- WEAPON (3) ------- Falx > --- INVENTORY (10) --- Melee Analysis Suite Melee Analysis Suite Makeshift Hacking Suite Makeshift Hacking Suite Missile Launcher CPS Tube (2) Peak State ------------ > --- POWER ------------ Ion Engine > --- PROPULSION ------- Armored Treads Overtuned Treads Overtuned Treads Overtuned Treads > --- UTILITY ---------- Medium Storage Unit Targeting Computer Advanced Targeting Computer Target Analyzer Target Analyzer Target Analyzer Improved Shield Generator > --- WEAPON ----------- Overtuned Barrage Gun Flak Gun Heavy Machine Gun > --- INVENTORY -------- Micro Nuclear Core A0-MCA's Component Scanner Gatling Laser Improved Light Cannon Improved Light Cannon Grenade Launcher CPS Tube [Rating: 45] Favorites ----------- Power Ion Engine Engine Ion Engine Power Core Micro Nuclear Core Propulsion Overtuned Treads Treads Overtuned Treads Wheel Compact Wheel Utility Target Analyzer Device Improved Shield Generator Storage Medium Storage Unit Processor Target Analyzer Protection Improved Utility Shielding Weapon Improved Light Cannon Energy Gun Medium Laser Energy Cannon Subdweller Beam Cannon Ballistic Gun Flak Gun Ballistic Cannon Improved Light Cannon Launcher Missile Launcher Slashing Weapon Falx Build | -11 -10 -10 -10 -8 -6 -6 -6 ------- Run | Yrd Mat Min Sub Scr Fac Low Low Slots Evolved 8 | . . . . . 8 . . Power . | . . . . . . . . Propulsion 2 | . . . . . 2 . . Utility 5 | . . . . . 5 . . Weapon 1 | . . . . . 1 . . Parts Attached 47 | 6 2 . 7 7 10 . 15 Power 3 | 1 . . 1 . . . 1 Engine 2 | 1 . . 1 . . . . Core 1 | . . . . . . . 1 Reactor . | . . . . . . . . Propulsion 15 | 2 . . 3 4 2 . 4 Treads 10 | 2 . . . 4 2 . 2 Leg . | . . . . . . . . Wheel 5 | . . . 3 . . . 2 Hover . | . . . . . . . . Flight . | . . . . . . . . Utility 12 | 1 1 . . 1 5 . 4 Device 1 | . . . . . 1 . . Storage 2 | 1 . . . 1 . . . Processor 8 | . 1 . . . 4 . 3 Hackware . | . . . . . . . . Protection 1 | . . . . . . . 1 Artifact . | . . . . . . . . Weapon 17 | 2 1 . 3 2 3 . 6 Energy Gun 4 | 2 1 . . . . . 1 Energy Cannon 1 | . . . 1 . . . . Ballistic Gun 4 | . . . . . 3 . 1 Ballistic Cannon 6 | . . . 2 2 . . 2 Launcher 1 | . . . . . . . 1 Special Weapon . | . . . . . . . . Impact Weapon . | . . . . . . . . Slashing Weapon 1 | . . . . . . . 1 Piercing Weapon . | . . . . . . . . Special Melee Weapon . | . . . . . . . . Unidentified Prototypes . | . . . . . . . . Parts Lost 27 | . . . 5 . . 1 21 Power 3 | . . . 1 . . . 2 Propulsion 9 | . . . 2 . . . 7 Utility 5 | . . . . . . 1 4 Weapon 10 | . . . 2 . . . 8 Highest Loss Streak 8 | . . . 2 . . 1 8 To Critical Strikes . | . . . . . . . . Average Backups 7 | 2 5 7 7 8 5 9 5 Power . | . 1 1 . . . 1 . Propulsion . | 1 2 2 1 . . 1 . Utility 2 | . . 1 1 2 1 3 2 Weapon 2 | . 2 3 3 3 2 3 1 Tool/Special . | . . . . . . . . Unused Backups 13 | . . . 1 5 2 . 5 Power . | . . . . . . . . Propulsion 1 | . . . . 1 . . . Utility 6 | . . . . 2 . . 4 Weapon 4 | . . . 1 1 2 . . Tool/Special 2 | . . . . 1 . . 1 Average Slot Usage (%) 90 | . 97 100 87 96 95 99 77 Engine 7 | . 14 14 8 14 6 6 . Core 1 | . . . . . . . 4 Treads 18 | . 28 28 20 21 25 26 7 Wheel 2 | . . . 1 6 . . . Device 1 | . . . . . 5 6 . Storage 9 | . 14 14 14 14 6 6 6 Processor 24 | . 11 14 14 14 29 32 32 Protection 1 | . . . . . . . 5 Energy Gun 4 | . 28 28 10 . . . 3 Ballistic Gun 5 | . . . . . 7 13 7 Ballistic Cannon 10 | . . . 15 21 11 6 4 Peak Build Rating 45 | 6 7 7 9 16 45 45 45 Average Rating 27 | 4 6 7 6 12 39 44 39 On Entrance 16 | . 6 7 7 8 16 45 42 Avg Prop Armor Cover (%) 8 | . . . . 9 6 8 9 Naked Turns . | . . . . . . . . Heaviest Build 32 | 11 12 12 18 27 31 31 32 Greatest Support 74 | 40 40 40 40 43 74 74 48 Greatest Overweight (x) 10 | . . . 2 1 . 1 10 Average Overweight (x) . | . . . . . . . . Largest Inventory Capacity 10 | 8 8 8 8 10 10 10 10 Average Capacity 9 | 7 8 8 8 9 10 10 10 Most Carried 10 | 4 7 7 8 10 10 10 10 Average Carried 7 | 2 5 7 7 8 5 9 5 Final Capacity 10 | 8 8 8 8 10 10 10 10 Final Carried 10 | 4 7 7 6 10 10 10 6 Class Distribution -------------------- 50% | Mutant 35% | Scavenger-Gunner 11% | Gunner Dominant Class ---------------- Mutant | -10/Materials Mutant | -10/Mines Mutant | -10/Subcaves Mutant | -8/Scraptown Scavenger-Gunner | -6/Factory Scavenger-Gunner | -6/Lower Caves Gunner | -6/Lower Caves Resources | -11 -10 -10 -10 -8 -6 -6 -6 ----------- Run | Yrd Mat Min Sub Scr Fac Low Low Matter Collected 1900 | 115 44 33 74 556 139 255 684 Remotely . | . . . . . . . . Salvage Created 1525 | . 44 45 68 301 189 101 777 Parts 53 | . 2 5 5 4 8 7 22 Haulers Intercepted . | . . . . . . . . Recyclers Shooed . | . . . . . . . . Parts Field Recycled . | . . . . . . . . Retrieved Matter . | . . . . . . . . Parts Self-Destructed 31 | . . . 3 . . 7 21 Prevented . | . . . . . . . . Parts Restored . | . . . . . . . . Kills | -11 -10 -10 -10 -8 -6 -6 -6 ------- Run | Yrd Mat Min Sub Scr Fac Low Low Combat Hostiles Destroyed 36 | . 1 3 4 6 5 4 13 Melee 2 | . . . . . . . 2 Guns 13 | . 1 3 . . 1 2 6 Cannons 19 | . . . 4 6 4 2 3 AOE 2 | . . . . . . . 2 Classes Destroyed 16 | . 1 1 1 5 4 . 4 Operator 1 | . . . . . 1 . . Watcher 2 | . . . . . 2 . . Swarmer 6 | . . 3 . . . 3 . Grunt 11 | . 1 . . . 3 . 7 Brawler 1 | . . . . . . . 1 Duelist 4 | . . . . . . . 4 Sentry 1 | . . . . . 1 . . Programmer 2 | . . . . . 1 1 . Subdweller 4 | . . . 4 . . . . Federalist 1 | . . . . 1 . . . Ranger 1 | . . . . 1 . . . Guru 1 | . . . . 1 . . . Scrapper 2 | . . . . 2 . . . Packrat 1 | . . . . . . . 1 Samaritan 3 | . . . . . . . 3 Savage 1 | . . . . 1 . . . Mutant 1 | . . . . . . . 1 Best Kill Streak 4 | . 1 2 1 2 4 2 4 Combat Bots Only 4 | . 1 2 1 2 4 2 4 Max Kills in Single Turn 1 | . 1 1 1 1 1 1 1 Gunslinging . | . . . . . . . . Exploded 1 | . . . . . . . 1 Melee 1 | . . . . . . . 1 Uniques/NPCs Destroyed . | . . . . . . . . Combat | -11 -10 -10 -10 -8 -6 -6 -6 -------- Run | Yrd Mat Min Sub Scr Fac Low Low Hostile Shots Fired 327 | . 4 13 43 29 57 11 170 Missed 101 | . 3 6 7 14 20 3 48 Hits 226 | . 1 7 36 15 37 8 122 Melee 21 | . . . . . . . 21 Projectile 205 | . 1 7 36 15 37 8 101 Critical Strikes 12 | . . 1 . . 1 . 10 Actively Blocked 2 | . . . . . . . 2 Part Disruptions 4 | . . . . . . . 4 Damage Taken 4047 | . 10 56 807 111 317 85 2661 Core 1095 | . . . 194 35 31 . 835 Absorbed by Shields 225 | . . . . . 125 31 69 Redirected to Shielding 109 | . . . . . . . 109 Core Remaining (%) 54 | 100 . . . 8 . . . Volleys Fired 150 | . 4 6 34 28 20 5 53 Largest 3 | . 2 2 2 2 3 3 3 Hottest 145 | . 90 100 100 80 96 93 145 Shots Fired 315 | . 8 12 61 54 58 15 107 Gun 123 | . 8 12 14 . 17 10 62 Cannon 189 | . . . 47 54 41 5 42 Launcher 3 | . . . . . . . 3 Special . | . . . . . . . . Kinetic 259 | . . . 47 52 58 15 87 Thermal 53 | . 8 12 14 2 . . 17 Explosive 3 | . . . . . . . 3 Electromagnetic . | . . . . . . . . Robot Hit Streak 14 | . 3 4 10 7 12 4 14 Robot Miss Streak 5 | . 1 1 2 2 5 3 4 Penetration Max . | . . . . . . . . Secondary Targets 1 | . . 1 . . . . . Max Gunslinging Chain 1 | . . 1 . . . . . Shots Hit Robots 220 | . 5 7 44 30 43 6 85 Core Hits 123 | . 3 3 7 10 34 4 62 Critical Kills 2 | . . . . . . 2 . Critical Parts Destroyed 1 | . . . . . . 1 . Critical Strikes 12 | . . . 2 1 3 3 3 Destroy 3 | . . . . . . 3 . Blast 8 | . . . 2 1 3 . 2 Sever 1 | . . . . . . . 1 Melee Attacks 7 | . . . . . . . 7 Impact . | . . . . . . . . Slashing 7 | . . . . . . . 7 Piercing . | . . . . . . . . Sneak Attacks 1 | . . . . . . . 1 Combat Hostiles . | . . . . . . . . Follow-up Attacks . | . . . . . . . . Damage Inflicted 4511 | . 61 86 517 626 923 148 2150 Guns 1710 | . 58 86 . . 372 100 1094 Cannons 2403 | . . . 517 626 551 48 661 Explosions 183 | . . . . . . . 183 Melee 212 | . . . . . . . 212 Ramming 3 | . 3 . . . . . . Kinetic 3529 | . . . 517 576 923 148 1365 Thermal 584 | . 58 86 . 50 . . 390 Explosive 183 | . . . . . . . 183 Electromagnetic . | . . . . . . . . Impact . | . . . . . . . . Slashing 212 | . . . . . . . 212 Piercing . | . . . . . . . . Highest Corruption 5 | . . . . . 1 1 5 Average Corruption 1 | . . . . . 1 1 1 Corruption Purged . | . . . . . . . . Corruption Blocked . | . . . . . . . . Effects 29 | . . . . . 11 1 17 Message Errors 6 | . . . . . . 1 5 Matter Fused 5 | . . . . . 2 . 3 Heat Flow Errors 3 | . . . . . 2 . 1 Energy Discharges 5 | . . . . . 3 . 2 Parts Fused 1 | . . . . . . . 1 Data Loss (minor) 4 | . . . . . 1 . 3 Data Loss (major) 2 | . . . . . 2 . . Misfires 3 | . . . . . 1 . 2 Overload Shots . | . . . . . . . . Overflow Damage 48 | . . . . 18 . . 30 Projectiles 48 | . . . . 18 . . 30 Explosions . | . . . . . . . . Melee . | . . . . . . . . Knockbacks 22 | . . . 5 4 4 . 9 Impact . | . . . . . . . . Kinetic 21 | . . . 5 4 4 . 8 Secondary 1 | . . . . . . . 1 Self-Inflicted Damage . | . . . . . . . . Shots . | . . . . . . . . Rammed 1 | . 1 . . . . . . Targets Rammed 1 | . 1 . . . . . . Kicked . | . . . . . . . . Crushed . | . . . . . . . . Highest Temperature 246 | . 96 156 . 40 241 56 246 Average Temperature 51 | . 41 66 . 12 38 24 84 Received Heat Transfer 1121 | . 6 . 90 30 121 . 874 Siege Activations . | . . . . . . . . Martial Activations . | . . . . . . . . Shielding Activations . | . . . . . . . . Robots Disrupted . | . . . . . . . . Combat Hostiles . | . . . . . . . . Robots Corrupted . | . . . . . . . . Combat Hostiles . | . . . . . . . . Parts Fried . | . . . . . . . . Impact Corruptions . | . . . . . . . . Robots Melted . | . . . . . . . . Combat Hostiles . | . . . . . . . . Parts Melted 3 | . 1 . . 2 . . . Heat Transferred 1369 | . 161 259 . 74 . . 875 Parts Sabotaged . | . . . . . . . . Parts Stolen . | . . . . . . . . Parts Stripped . | . . . . . . . . Power Chain Reactions . | . . . . . . . . Alert | -11 -10 -10 -10 -8 -6 -6 -6 ------- Run | Yrd Mat Min Sub Scr Fac Low Low Maximum Alert Level . | . . . . . . . . Low Security (%) 100 | 100 100 100 . . 100 . . Level 1 . | . . . . . . . . Level 2 . | . . . . . . . . Level 3 . | . . . . . . . . Level 4 . | . . . . . . . . Level 5 . | . . . . . . . . High Security . | . . . . . . . . Max Security . | . . . . . . . . Peak Influence 92 | . 25 50 . . 92 . . Initial . | . . . . . . . . Average 10 | . 1 16 . . 14 . . Influence Increases 851 | . 61 100 . 5 150 130 405 Destroy 0b10 Robot/C 500 | . 20 60 . . 100 80 240 Destroy 0b10 Robot/NC 20 | . . . . 5 15 . . Destroy Leader 94 | . . 10 . . 34 20 30 Successful Hack 11 | . 11 . . . . . . Destroy Structure 1 | . . . . . 1 . . Lose Combat Pursuer 225 | . 30 30 . . . 30 135 Influence Decreases 829 | . 61 60 40 5 150 82 431 Entered New Map 31 | . . . 21 . . . 10 Time Decay 580 | . 61 60 19 5 150 72 213 Lost Part 218 | . . . . . . 10 208 Squads Dispatched 3 | . . . . . 2 . 1 Investigation . | . . . . . . . . Extermination 1 | . . . . . 1 . . Reinforcement 1 | . . . . . 1 . . Assault 1 | . . . . . . . 1 Garrison . | . . . . . . . . Intercept . | . . . . . . . . Searches Triggered . | . . . . . . . . Construction Impeded . | . . . . . . . . Haulers Reinforced . | . . . . . . . . Active Scanning Responses . | . . . . . . . . Cargo Convoy Interrupts . | . . . . . . . . Stealth | -11 -10 -10 -10 -8 -6 -6 -6 --------- Run | Yrd Mat Min Sub Scr Fac Low Low Distress Signals 1 | . 1 . . . . . . Communications Jammed . | . . . . . . . . Distress Signals . | . . . . . . . . Times Spotted 74 | . 5 5 4 20 10 5 25 Peak Tracking Total 5 | . 2 3 1 4 3 4 5 Tactical Retreats 12 | . 2 1 . 1 . 1 7 Traps | -11 -10 -10 -10 -8 -6 -6 -6 ------- Run | Yrd Mat Min Sub Scr Fac Low Low Traps Triggered 1 | . . . . . . . 1 Indirectly . | . . . . . . . . Trap Hack Attempts . | . . . . . . . . Triggered . | . . . . . . . . Disarmed . | . . . . . . . . Reprogrammed . | . . . . . . . . Reused . | . . . . . . . . Traps Extracted . | . . . . . . . . Installed . | . . . . . . . . Triggered . | . . . . . . . . Machines | -11 -10 -10 -10 -8 -6 -6 -6 ---------- Run | Yrd Mat Min Sub Scr Fac Low Low Machines Disabled 4 | . . . . 3 . . 1 Max in Single Turn 1 | . . . . 1 . . 1 Machines Repaired . | . . . . . . . . Machines Dismantled . | . . . . . . . . Machines Sabotaged . | . . . . . . . . Overloaded Fab Kills . | . . . . . . . . Hacking | -11 -10 -10 -10 -8 -6 -6 -6 --------- Run | Yrd Mat Min Sub Scr Fac Low Low Machines Accessed 16 | . 4 1 . 6 4 . 1 Terminals 8 | . 4 1 . . 3 . . Fabricators . | . . . . . . . . Repair Stations . | . . . . . . . . Recycling Units 1 | . . . . . 1 . . Scanalyzers . | . . . . . . . . Garrison Access . | . . . . . . . . Total Hacks 64 | . 7 2 . 47 7 . 1 Successful 55 | . 4 1 . 47 2 . 1 Failed 9 | . 3 1 . . 5 . . Catastrophic 4 | . . 1 . . 3 . . Database Lockouts . | . . . . . . . . Manual 12 | . 7 2 . . 3 . . Terminals 13 | . 7 2 . . 4 . . Fabricators . | . . . . . . . . Repair Stations . | . . . . . . . . Recycling Units 3 | . . . . . 3 . . Scanalyzers . | . . . . . . . . Garrison Access . | . . . . . . . . Terminal Hacks 53 | . 3 1 . 47 1 . 1 Record 48 | . . . . 47 1 . . Part Schematic 1 | . 1 . . . . . . Open Door 1 | . . . . . . . 1 Alert Level 1 | . 1 . . . . . . Unreport Threat 1 | . 1 . . . . . . Reinforcement Status 1 | . . 1 . . . . . Fabricator Hacks . | . . . . . . . . Repair Station Hacks . | . . . . . . . . Recycling Unit Hacks 1 | . . . . . 1 . . Retrieve Matter 1 | . . . . . 1 . . Scanalyzer . | . . . . . . . . Garrison Access Hacks . | . . . . . . . . Unauthorized Hacks 1 | . 1 . . . . . . Terminals 1 | . 1 . . . . . . Botnet 1 | . 1 . . . . . . Fabricators . | . . . . . . . . Repair Stations . | . . . . . . . . Recycling Units . | . . . . . . . . Scanalyzers . | . . . . . . . . Garrison Access . | . . . . . . . . Data Cores Recovered . | . . . . . . . . Used . | . . . . . . . . Hacking Detections 7 | . 3 1 . . 3 . . Full Trace Events . | . . . . . . . . Feedback Events . | . . . . . . . . Feedback Blocked . | . . . . . . . . Robot Schematics Acquired . | . . . . . . . . Robots Built . | . . . . . . . . Authchips . | . . . . . . . . Time . | . . . . . . . . Total Robot Build Rating . | . . . . . . . . Part Schematics Acquired 1 | . 1 . . . . . . Parts Built . | . . . . . . . . Authchips . | . . . . . . . . Time . | . . . . . . . . Total Part Build Rating . | . . . . . . . . Part Studies Acquired . | . . . . . . . . Parts Repaired . | . . . . . . . . Time . | . . . . . . . . Parts Recycled . | . . . . . . . . Recycled Matter . | . . . . . . . . Retrieved Matter . | . . . . . . . . Retrieved Components . | . . . . . . . . Parts Scanalyzed . | . . . . . . . . Part Schematics Acquired . | . . . . . . . . Parts Damaged . | . . . . . . . . Bothacking | -11 -10 -10 -10 -8 -6 -6 -6 ------------ Run | Yrd Mat Min Sub Scr Fac Low Low Used RIF Installer . | . . . . . . . . Robots Hacked . | . . . . . . . . Non-combat . | . . . . . . . . Combat . | . . . . . . . . Robot Hacks Applied . | . . . . . . . . Relay Couplers Released . | . . . . . . . . Fabnet Peak Effective % . | . . . . . . . . Robots Rewired . | . . . . . . . . Allies Hacked . | . . . . . . . . Hacks Repelled . | . . . . . . . . Allies | -11 -10 -10 -10 -8 -6 -6 -6 -------- Run | Yrd Mat Min Sub Scr Fac Low Low Total Allies . | . . . . . . . . Largest Group . | . . . . . . . . Highest-Rated Group . | . . . . . . . . Highest-Rated Ally . | . . . . . . . . Initial UFD Resources 22 | . . . . . 22 22 22 Total Orders . | . . . . . . . . Ally Attacks . | . . . . . . . . Total Damage . | . . . . . . . . Kills . | . . . . . . . . Allies Corrupted . | . . . . . . . . Allies Melted 6 | . . . . 6 . . . Intel | -11 -10 -10 -10 -8 -6 -6 -6 ------- Run | Yrd Mat Min Sub Scr Fac Low Low Active Infowar (turns) . | . . . . . . . . Robot Analysis Total . | . . . . . . . . Derelict Logs Recovered 7 | . . 1 1 1 . 1 3 Drone Launches . | . . . . . . . . Drone Recoveries . | . . . . . . . . Exploration | -11 -10 -10 -10 -8 -6 -6 -6 ------------- Run | Yrd Mat Min Sub Scr Fac Low Low Turns Passed 8108 | 82 535 238 543 2152 967 1122 2469 Spaces Moved 4441 | 46 245 138 284 1424 442 670 1192 Core 123 | 3 . . 6 . . . 114 Treads 3629 | 43 245 138 242 894 442 670 955 Legs . | . . . . . . . . Wheels 689 | . . . 36 530 . . 123 Hover . | . . . . . . . . Flight . | . . . . . . . . Fastest Speed 50 | 50 160 160 90 90 147 147 100 Average Speed 158 | 152 160 160 151 138 148 154 187 Slowest Speed 550 | 160 160 160 160 250 155 250 550 Overloaded Moves . | . . . . . . . . Propulsion Burnouts . | . . . . . . . . Robots Hopped . | . . . . . . . . Potential Cave-ins . | . . . . . . . . Cave-ins Triggered . | . . . . . . . . Exploration Rate (%) 42 | 3 36 29 23 85 10 67 84 Regions Visited 7 Branch Regions 5 Pre-discovered Areas 4 | . . . 1 . . 1 2 Known Exits Taken 2 | . . 1 . . 1 . . Unknown Exits Taken 5 | 1 1 . 1 1 . 1 . Scrap Searched 14 | . . . . 6 . 1 7 Spaces Dug 2 | . . . . 2 . . . Terrain Destroyed 20 | . . . . 2 . 2 16 Melee . | . . . . . . . . Projectile 6 | . . . . 2 . 2 2 AOE 14 | . . . . . . . 14 Terrain Rammed . | . . . . . . . . Walls Destroyed . | . . . . . . . . Machines Disabled . | . . . . . . . . Actions | -11 -10 -10 -10 -8 -6 -6 -6 --------- Run | Yrd Mat Min Sub Scr Fac Low Low Total 5230 | 55 379 143 335 1545 705 746 1322 Wait 512 | . 125 . 5 62 215 66 39 Move 4434 | 45 244 137 283 1423 441 669 1192 Hop . | . . . . . . . . Pick Up 40 | 4 3 . 3 13 8 1 8 Fast Attach 15 | 6 1 . 1 1 2 . 4 Attach 24 | . . . 4 1 7 . 12 Detach 4 | . . . 1 . 1 . 2 Swap 23 | . 1 . 2 6 9 . 5 Drop 16 | . . . 2 11 2 1 . Fire 150 | . 4 6 34 28 20 5 53 Melee 7 | . . . . . . . 7 Ram . | . . . . . . . . Kick . | . . . . . . . . Crush 1 | . 1 . . . . . . Escape Stasis . | . . . . . . . . Rewire 4 | . . . . . . 4 . Trap . | . . . . . . . . Miscellaneous . | . . . . . . . . Route ------- -11/Scrapyard -10/Materials -10/Mines -10/Subcaves (discovered 2 exits: [*Mat] / *Scr) -8/Scraptown (discovered 2 exits: *Fac x2) -6/Factory (discovered 2 exits: *Low x2) -6/Lower Caves -6/Lower Caves (discovered 1 exit: [*Zio]) History --------- Turn | Location | Event 6 | -11/Scrapyard | Discovered new exit (range 16) 83 | -11/Scrapyard | Entered Materials 306 | -10/Materials | Build established: Mutant 591 | -10/Materials | Discovered new exit (range 7) 618 | -10/Materials | Entered Mines 698 | -10/Mines | Identified exit to Subcaves 856 | -10/Mines | Entered Subcaves 857 | -10/Subcaves | Approached by a straggling Scientist 914 | -10/Subcaves | Learned location of 2 exits from Materials 918 | -10/Subcaves | Learned location of Zion (-6) 918 | -10/Subcaves | Met a Zionite searching for "candidates" 983 | -10/Subcaves | Shifting Twisted Machinery released Sub. Machine Gun 1006 | -10/Subcaves | Shifting Twisted Machinery released Battle Cannon 1167 | -10/Subcaves | Core integrity fell below 50% 1192 | -10/Subcaves | Discovered new exit (range 5) 1392 | -10/Subcaves | Shifting Twisted Machinery released Battle Rifle 1393 | -10/Subcaves | Scientist uncovered a shortcut to Scraptown 1399 | -10/Subcaves | Entered Scraptown 1501 | -8/Scraptown | Heard Great Nut preacher, LISTEN AND RECITE! 1624 | -8/Scraptown | Discovered new exit (range 5) 1697 | -8/Scraptown | Scanned Subdweller tech in exchange for log data 1700 | -8/Scraptown | Learned location of 1 exit from Factory 1737 | -8/Scraptown | Visited Awakened 1768 | -8/Scraptown | Visited Science Testing Area 1809 | -8/Scraptown | Visited UFD Registry 1809 | -8/Scraptown | Registered with UFD as "Thunderdrive" 1816 | -8/Scraptown | Visited Cave Peace 1842 | -8/Scraptown | Visited Junk Repository 1864 | -8/Scraptown | Visited Bundlers 2308 | -8/Scraptown | Visited Cyclists 2329 | -8/Scraptown | Entered Cyclist Reading Room 2473 | -8/Scraptown | Visited Curators Association 2517 | -8/Scraptown | Visited A0-MCA Data Center 2527 | -8/Scraptown | Given a B+ rating by A0-MCA 2533 | -8/Scraptown | Found A0-MCA's Component Scanner 2665 | -8/Scraptown | Found Scrap Suit 2732 | -8/Scraptown | Discovered new exit (range 5) 2793 | -8/Scraptown | Visited Abandonware Association 2830 | -8/Scraptown | Learned abandonware demo "OVRCLOCK.EXE" 2836 | -8/Scraptown | Learned abandonware demo "POISON.EXE" 2915 | -8/Scraptown | Met Optimus 2915 | -8/Scraptown | Accepted into 0bPrime 3039 | -8/Scraptown | Visited Infowarlord's Domain 3063 | -8/Scraptown | Civil war broke out across Scraptown 3269 | -8/Scraptown | Lost 8 allies 3300 | -8/Scraptown | Core integrity fell below 20% 3415 | -8/Scraptown | Lost 5 allies 3498 | -8/Scraptown | Lost 9 allies 3551 | -8/Scraptown | Entered Factory 3551 | -6/Factory | Evolved 8 slots: Propulsion x2, Utility x5, Weapon x1 3552 | -6/Factory | Identified exit to Lower Caves 3807 | -6/Factory | Build established: Scavenger-Gunner 4420 | -6/Factory | Discovered exit to Lower Caves (range 15) 4518 | -6/Factory | Entered Lower Caves 5530 | -6/Lower Caves | Learned location of Extension (-5) 5607 | -6/Lower Caves | Discovered new exit (range 7) 5640 | -6/Lower Caves | Entered another Lower Caves area 5706 | -6/Lower Caves | Lost 8 parts (1p3n1u3w) 5996 | -6/Lower Caves | Learned Factory stockpile data 6498 | -6/Lower Caves | Attacked by a delusional Derelict stockpiling parts 6797 | -6/Lower Caves | Discovered new exit (range 16) 6927 | -6/Lower Caves | Build established: Gunner 7306 | -6/Lower Caves | Attracted the attention of an 0b10 outpost 7593 | -6/Lower Caves | Core integrity fell below 50% 7623 | -6/Lower Caves | Lost 5 parts (1p1n3w) 7853 | -6/Lower Caves | Build established: Mutant 8100 | -6/Lower Caves | Core integrity fell below 20% 8109 | -6/Lower Caves | Destroyed by B-48 Gladiator with Mace Last Messages --------------- 08095_ Carbon-fiber Leg fries itself beyond repair. 08097_ Imp. Melee Analysis Suite fries itself beyond repair. 08097_ B-48 Gladiator destroyed. 08099_ Penetrated by Slug. 08101_ Imp. Utility Shielding destroyed. 08102_ Penetrated by Slug. 08103_ Target Analyzer destroyed. 08103_ A0-MCA's Component Scanner destroyed. 08103_ System corrupted by crushing effect (+3). 08103_ System corrupted by crushing effect (+1). 08103_ Acquired Lgt. Treads. 08105_ Penetrated by Slug. 08105_ Gatling Laser destroyed. 08107_ Rnf. Deuterium Engine fries itself beyond repair. 08108_ Penetrated by Slug. 08109_ Lgt. Treads fries itself beyond repair. [Achievement: Just Browsing] Map ----- +----------------------------------------------------+ | #???????## ##??????????????????#### #?# | | ##?????## ##?####???#######?## ### | | #??#### ### #??## ## ### ## | | # ##??# ###### #?## ## ## | | # ##??# #???## ### ## ### | | ?# ##### ##???# ## ### | | ?## ### ##????# ### | | ?## ##?????# ## ## | | ## ###?????## ## | | # ##### ##??????## ### ## | | ##???## ##??????## ##?####### ### | | ##?????###???????# ##???????####?# | | #???????????????## ###??????????# | | ###########?????# ##?????#### ####### | | #?????# ##??## #?????? | | ####??## #### #?????? | | ######### #???## #??? | | #???????# ####?# #?? | | ????????##### ### ###### # ?? | | ????????????# ## ##????## # ????? | | ????????????#### ## ### #??????# #?#???? | | ???????????????# ####??# ##??????## ????? | | ???????????????# #?????## Y##???????# ???? | | ???????????##### ###???##g= ##??????? ???? | | #??????????# #??## ###???????? ???? | | ##?????????# "" #??# @b/ ##???????? ????? | | ## #?# """"" #??#; ! #????????? ????? | | #?????# """" ##?## ##?##????????????? | | ##?????# " #### ###??# ##??????????? | | ## #??????# "" "" ### ######## ##?????????? | | ??# #??????#" """ ## ### ? ##????????? | | ???##??????#" " "" ### ### #???# #????????? | | ##?????????# #??## #????????? | | ##????????# ## #### #####????? | | #????????############ ## ##???? | | ##?????????????????## ### # #???? | | #?????????????????# ### # ##???? | | #????????????## ## # #^ ^ #???? | | ##????????????# ####^ ##^ #???? | | ## ##?????????????## #?# ### #???? | | #?###???????????????# # ### # ##???? | | ##??????????????????# ## ## #! #???? | | #??????????????????# ### # # !% #???? | | #????????????????? #?# ##########???? | | ##???????????????? ### ##???????????? | | "#????????????????######## ##??????????? | | ##??????????????????""## #??????????? | | ???##???###????????""" #??????????? | | ???# ???# ##???????""" #??????????? | | ???# ???# ##??????""" #??????????? | +----------------------------------------------------+ Best States ------------- Heat Dissipation 37 Energy Generation 15 Energy Capacity 250 Matter Stores 300 Matter Capacity 300 Sight Range 16 Terrain Scan Density 10 Utility Shielding 66 Evasion (%) 42 Targeting Accuracy 13 Target Analysis 7 Core Analysis 6 Recoil Reduction 4 Item Schematics ----------------- Lgt. Cannon | -10/Materials | Hacked Robot Schematics ------------------ None Fabricated ------------ Nothing Repaired ---------- Nothing Studied --------- None Alien Tech Used ----------------- None Achievements -------------- Bob, First Of His Name Civilization 2243 Just Browsing Link The Feds Nice Directions, Buddy Uncivil War Challenges ------------ None Game ------ Seed AuthchipShiftMachine Manual? 0 Play Time 01:18:03 Cumulative 50.5 hours Start 2026.06.30 @ 02:10:53 End 2026.06.30 @ 03:30:49 Sessions 1 Manual Loads 0 Difficulty Rogue Special Mode None Game No. 70 Rogue 38 Adventurer 32 Explorer 0 Win Type - Total 0 Types 0/0/0/0/0/0/0/0/0/0 Lore% 24 Gallery% 25 Achievement% 21 Wizard Run 0 Options --------- Layout 1 ASCII 0 Keyboard 0 Movement Numpad Keybinds 0 Fullscreen 1 Font 24/Smallcaps Map View 50x35 Zoom Use 0% Tactical HUD 1 Map Filters NONE Filters NONE Steam 1 RUN: 82b8b70d-d065-48e8-9143-f28fd138304a